Workbook

Sheet Budget
A1: Total Sponsor Cost | B1: =Y105 -> 0 | C1: Total Cost Share Cost | D1: =Z105 -> 0 | E1: Total Project Cost | G1: =Y107 -> 0
A2: Start Here
A3: PI:
A4: Project Title:
A5: Sponsor:
A7: Start Date: | C7: End Date:
A8: Project Location: | C8: Number budget periods: | D8: =IF(ISNUMBER(CEILING(DATEDIF($B$7, $D$7, "m")/12,1)),CEILING(DATEDIF($B$7, $D$7, "m")/12,1),1) -> 0 | E8: (Range 1-5)
A9: IDC Type: | B9: Select One | C9: Cost of living increase (%): | D9: 0 | E9: (Range 0-10%)
A10: IDC Rate: | C10: Period to begin increase | D10: 1 | E10: (Range 1-2)
B12: Cayuse Proposal Number:
B13: Preparer:
B14: Budget Prepared Date:
B15: Cost Share: | C15: No
A16: VERSION DATE 7/1/2022
C17: Budget Period Start | E17: =B7 -> 00:00:00 | I17: =IF(Number_of_budget_periods>1, E18+DAY(1), "") ->  | M17: =IF(Number_of_budget_periods>2, I18+DAY(1), "") ->  | Q17: =IF(Number_of_budget_periods>3, M18+DAY(1), "") ->  | U17: =IF(Number_of_budget_periods>4, Q18+DAY(1), "") -> 
C18: Budget Period End | E18: =IF($D$7 < EDATE(E17,12), $D$7, EDATE(E17,12)-DAY(1)) -> 00:00:00 | I18: =IF(Number_of_budget_periods>1,IF($D$7 < EDATE(I17,12), $D$7, EDATE(I17,12)-DAY(1)),"") ->  | M18: =IF(Number_of_budget_periods>2,IF($D$7 < EDATE(M17,12), $D$7, EDATE(M17,12)-DAY(1)),"") ->  | Q18: =IF(Number_of_budget_periods>3,IF($D$7 < EDATE(Q17,12), $D$7, EDATE(Q17,12)-DAY(1)),"") ->  | U18: =IF(Number_of_budget_periods>4,IF($D$7 < EDATE(U17,12), $D$7, EDATE(U17,12)-DAY(1)),"") -> 
C19: Number of Months | E19: =MONTH(E18-E17) -> 1 | I19: =IF(Number_of_budget_periods>1, MONTH(I18-I17), "") ->  | M19: =IF(Number_of_budget_periods>2, MONTH(M18-M17), "") ->  | Q19: =IF(Number_of_budget_periods>3, MONTH(Q18-Q17), "") ->  | U19: =IF(Number_of_budget_periods>4, MONTH(U18-U17), "") -> 
E20: Period 1 | I20: Period 2 | M20: Period 3 | Q20: Period 4 | U20: Period 5 | Y20: Totals
E21: % Effort | F21: Sponsor | G21: % CS Effort | H21: UM Cost Share | I21: % Effort | J21: Sponsor | K21: % CS Effort | L21: UM Cost Share | M21: % Effort | N21: Sponsor | O21: % CS Effort | P21: UM Cost Share | Q21: % Effort | R21: Sponsor | S21: % CS Effort | T21: UM Cost Share | U21: % Effort | V21: Sponsor | W21: % CS Effort | X21: UM Cost Share | Y21: Sponsor | Z21: UM Cost Share
A22: I. Salaries and Wages - KEY PERSONNEL | D22: Base Salary
B23: PRINCIPAL INVESTIGATOR | C23: =B3 & "" -> 
B24: 61266 | C24: Academic Year | E24: 1 | F24: =IF(Number_of_budget_periods > 0, $D24*E24*(1+Cost_of_living_increase)^(2-Cost_of_living_increase_starts_on_Budget_Period_number), 0) -> 0 | G24: 0 | H24: =IF(Number_of_budget_periods > 0, $D24*G24*(1+Cost_of_living_increase)^(2-Cost_of_living_increase_starts_on_Budget_Period_number), 0) -> 0 | I24: =$E24 -> 1 | J24: =IF(Number_of_budget_periods > 1, $D24*I24*(1+Cost_of_living_increase)^(2-Cost_of_living_increase_starts_on_Budget_Period_number+1), 0) -> 0 | K24: =$G24 -> 0 | L24: =IF(Number_of_budget_periods > 1, $D24*K24*(1+Cost_of_living_increase)^(2-Cost_of_living_increase_starts_on_Budget_Period_number+1), 0) -> 0 | M24: =$E24 -> 1 | N24: =IF(Number_of_budget_periods > 2, $D24*M24*(1+Cost_of_living_increase)^(2-Cost_of_living_increase_starts_on_Budget_Period_number+2), 0) -> 0 | O24: =$G24 -> 0 | P24: =IF(Number_of_budget_periods > 2, $D24*O24*(1+Cost_of_living_increase)^(2-Cost_of_living_increase_starts_on_Budget_Period_number+2), 0) -> 0 | Q24: =$E24 -> 1 | R24: =IF(Number_of_budget_periods > 3, $D24*Q24*(1+Cost_of_living_increase)^(2-Cost_of_living_increase_starts_on_Budget_Period_number+3), 0) -> 0 | S24: =$G24 -> 0 | T24: =IF(Number_of_budget_periods > 3, $D24*S24*(1+Cost_of_living_increase)^(2-Cost_of_living_increase_starts_on_Budget_Period_number+3), 0) -> 0 | U24: =$E24 -> 1 | V24: =IF(Number_of_budget_periods > 4, $D24*U24*(1+Cost_of_living_increase)^(2-Cost_of_living_increase_starts_on_Budget_Period_number+4), 0) -> 0 | W24: =$G24 -> 0 | X24: =IF(Number_of_budget_periods > 4, $D24*W24*(1+Cost_of_living_increase)^(2-Cost_of_living_increase_starts_on_Budget_Period_number+4), 0) -> 0 | Y24: =SUM(F24,J24,N24,R24,V24) -> 0 | Z24: =SUM(H24,L24,P24,T24,X24) -> 0
B25: 61254 | C25: Summer | D25: =D24/3 -> 0 | E25: 1 | F25: =IF(Number_of_budget_periods > 0, $D25*E25*(1+Cost_of_living_increase)^(2-Cost_of_living_increase_starts_on_Budget_Period_number), 0) -> 0 | G25: 0 | H25: =IF(Number_of_budget_periods > 0, $D25*G25*(1+Cost_of_living_increase)^(2-Cost_of_living_increase_starts_on_Budget_Period_number), 0) -> 0 | I25: =$E25 -> 1 | J25: =IF(Number_of_budget_periods > 1, $D25*I25*(1+Cost_of_living_increase)^(2-Cost_of_living_increase_starts_on_Budget_Period_number+1), 0) -> 0 | K25: =$G25 -> 0 | L25: =IF(Number_of_budget_periods > 1, $D25*K25*(1+Cost_of_living_increase)^(2-Cost_of_living_increase_starts_on_Budget_Period_number+1), 0) -> 0 | M25: =$E25 -> 1 | N25: =IF(Number_of_budget_periods > 2, $D25*M25*(1+Cost_of_living_increase)^(2-Cost_of_living_increase_starts_on_Budget_Period_number+2), 0) -> 0 | O25: =$G25 -> 0 | P25: =IF(Number_of_budget_periods > 2, $D25*O25*(1+Cost_of_living_increase)^(2-Cost_of_living_increase_starts_on_Budget_Period_number+2), 0) -> 0 | Q25: =$E25 -> 1 | R25: =IF(Number_of_budget_periods > 3, $D25*Q25*(1+Cost_of_living_increase)^(2-Cost_of_living_increase_starts_on_Budget_Period_number+3), 0) -> 0 | S25: =$G25 -> 0 | T25: =IF(Number_of_budget_periods > 3, $D25*S25*(1+Cost_of_living_increase)^(2-Cost_of_living_increase_starts_on_Budget_Period_number+3), 0) -> 0 | U25: =$E25 -> 1 | V25: =IF(Number_of_budget_periods > 4, $D25*U25*(1+Cost_of_living_increase)^(2-Cost_of_living_increase_starts_on_Budget_Period_number+4), 0) -> 0 | W25: =$G25 -> 0 | X25: =IF(Number_of_budget_periods > 4, $D25*W25*(1+Cost_of_living_increase)^(2-Cost_of_living_increase_starts_on_Budget_Period_number+4), 0) -> 0 | Y25: =SUM(F25,J25,N25,R25,V25) -> 0 | Z25: =SUM(H25,L25,P25,T25,X25) -> 0
B26: 61266 | C26: 12 Month | E26: 1 | F26: =IF(Number_of_budget_periods > 0, $D26*E26*(1+Cost_of_living_increase)^(2-Cost_of_living_increase_starts_on_Budget_Period_number), 0) -> 0 | G26: 0 | H26: =IF(Number_of_budget_periods > 0, $D26*G26*(1+Cost_of_living_increase)^(2-Cost_of_living_increase_starts_on_Budget_Period_number), 0) -> 0 | I26: =$E26 -> 1 | J26: =IF(Number_of_budget_periods > 1, $D26*I26*(1+Cost_of_living_increase)^(2-Cost_of_living_increase_starts_on_Budget_Period_number+1), 0) -> 0 | K26: =$G26 -> 0 | L26: =IF(Number_of_budget_periods > 1, $D26*K26*(1+Cost_of_living_increase)^(2-Cost_of_living_increase_starts_on_Budget_Period_number+1), 0) -> 0 | M26: =$E26 -> 1 | N26: =IF(Number_of_budget_periods > 2, $D26*M26*(1+Cost_of_living_increase)^(2-Cost_of_living_increase_starts_on_Budget_Period_number+2), 0) -> 0 | O26: =$G26 -> 0 | P26: =IF(Number_of_budget_periods > 2, $D26*O26*(1+Cost_of_living_increase)^(2-Cost_of_living_increase_starts_on_Budget_Period_number+2), 0) -> 0 | Q26: =$E26 -> 1 | R26: =IF(Number_of_budget_periods > 3, $D26*Q26*(1+Cost_of_living_increase)^(2-Cost_of_living_increase_starts_on_Budget_Period_number+3), 0) -> 0 | S26: =$G26 -> 0 | T26: =IF(Number_of_budget_periods > 3, $D26*S26*(1+Cost_of_living_increase)^(2-Cost_of_living_increase_starts_on_Budget_Period_number+3), 0) -> 0 | U26: =$E26 -> 1 | V26: =IF(Number_of_budget_periods > 4, $D26*U26*(1+Cost_of_living_increase)^(2-Cost_of_living_increase_starts_on_Budget_Period_number+4), 0) -> 0 | W26: =$G26 -> 0 | X26: =IF(Number_of_budget_periods > 4, $D26*W26*(1+Cost_of_living_increase)^(2-Cost_of_living_increase_starts_on_Budget_Period_number+4), 0) -> 0 | Y26: =SUM(F26,J26,N26,R26,V26) -> 0 | Z26: =SUM(H26,L26,P26,T26,X26) -> 0
B28: INVESTIGATOR
B29: 61266 | C29: Academic Year | E29: 1 | F29: =IF(Number_of_budget_periods > 0, $D29*E29*(1+Cost_of_living_increase)^(2-Cost_of_living_increase_starts_on_Budget_Period_number), 0) -> 0 | G29: 0 | H29: =IF(Number_of_budget_periods > 0, $D29*G29*(1+Cost_of_living_increase)^(2-Cost_of_living_increase_starts_on_Budget_Period_number), 0) -> 0 | I29: =$E29 -> 1 | J29: =IF(Number_of_budget_periods > 1, $D29*I29*(1+Cost_of_living_increase)^(2-Cost_of_living_increase_starts_on_Budget_Period_number+1), 0) -> 0 | K29: =$G29 -> 0 | L29: =IF(Number_of_budget_periods > 1, $D29*K29*(1+Cost_of_living_increase)^(2-Cost_of_living_increase_starts_on_Budget_Period_number+1), 0) -> 0 | M29: =$E29 -> 1 | N29: =IF(Number_of_budget_periods > 2, $D29*M29*(1+Cost_of_living_increase)^(2-Cost_of_living_increase_starts_on_Budget_Period_number+2), 0) -> 0 | O29: =$G29 -> 0 | P29: =IF(Number_of_budget_periods > 2, $D29*O29*(1+Cost_of_living_increase)^(2-Cost_of_living_increase_starts_on_Budget_Period_number+2), 0) -> 0 | Q29: =$E29 -> 1 | R29: =IF(Number_of_budget_periods > 3, $D29*Q29*(1+Cost_of_living_increase)^(2-Cost_of_living_increase_starts_on_Budget_Period_number+3), 0) -> 0 | S29: =$G29 -> 0 | T29: =IF(Number_of_budget_periods > 3, $D29*S29*(1+Cost_of_living_increase)^(2-Cost_of_living_increase_starts_on_Budget_Period_number+3), 0) -> 0 | U29: =$E29 -> 1 | V29: =IF(Number_of_budget_periods > 4, $D29*U29*(1+Cost_of_living_increase)^(2-Cost_of_living_increase_starts_on_Budget_Period_number+4), 0) -> 0 | W29: =$G29 -> 0 | X29: =IF(Number_of_budget_periods > 4, $D29*W29*(1+Cost_of_living_increase)^(2-Cost_of_living_increase_starts_on_Budget_Period_number+4), 0) -> 0 | Y29: =SUM(F29,J29,N29,R29,V29) -> 0 | Z29: =SUM(H29,L29,P29,T29,X29) -> 0
B30: 61254 | C30: Summer | D30: =D29/3 -> 0 | E30: 1 | F30: =IF(Number_of_budget_periods > 0, $D30*E30*(1+Cost_of_living_increase)^(2-Cost_of_living_increase_starts_on_Budget_Period_number), 0) -> 0 | G30: 0 | H30: =IF(Number_of_budget_periods > 0, $D30*G30*(1+Cost_of_living_increase)^(2-Cost_of_living_increase_starts_on_Budget_Period_number), 0) -> 0 | I30: 1 | J30: =IF(Number_of_budget_periods > 1, $D30*I30*(1+Cost_of_living_increase)^(2-Cost_of_living_increase_starts_on_Budget_Period_number+1), 0) -> 0 | K30: 0 | L30: =IF(Number_of_budget_periods > 1, $D30*K30*(1+Cost_of_living_increase)^(2-Cost_of_living_increase_starts_on_Budget_Period_number+1), 0) -> 0 | M30: 1 | N30: =IF(Number_of_budget_periods > 2, $D30*M30*(1+Cost_of_living_increase)^(2-Cost_of_living_increase_starts_on_Budget_Period_number+2), 0) -> 0 | O30: 0 | P30: =IF(Number_of_budget_periods > 2, $D30*O30*(1+Cost_of_living_increase)^(2-Cost_of_living_increase_starts_on_Budget_Period_number+2), 0) -> 0 | Q30: 1 | R30: =IF(Number_of_budget_periods > 3, $D30*Q30*(1+Cost_of_living_increase)^(2-Cost_of_living_increase_starts_on_Budget_Period_number+3), 0) -> 0 | S30: 0 | T30: =IF(Number_of_budget_periods > 3, $D30*S30*(1+Cost_of_living_increase)^(2-Cost_of_living_increase_starts_on_Budget_Period_number+3), 0) -> 0 | U30: 1 | V30: =IF(Number_of_budget_periods > 4, $D30*U30*(1+Cost_of_living_increase)^(2-Cost_of_living_increase_starts_on_Budget_Period_number+4), 0) -> 0 | W30: 0 | X30: =IF(Number_of_budget_periods > 4, $D30*W30*(1+Cost_of_living_increase)^(2-Cost_of_living_increase_starts_on_Budget_Period_number+4), 0) -> 0 | Y30: =SUM(F30,J30,N30,R30,V30) -> 0 | Z30: 0
B31: 61266 | C31: 12 Month | E31: 1 | F31: =IF(Number_of_budget_periods > 0, $D31*E31*(1+Cost_of_living_increase)^(2-Cost_of_living_increase_starts_on_Budget_Period_number), 0) -> 0 | G31: 0 | H31: =IF(Number_of_budget_periods > 0, $D31*G31*(1+Cost_of_living_increase)^(2-Cost_of_living_increase_starts_on_Budget_Period_number), 0) -> 0 | I31: 1 | J31: =IF(Number_of_budget_periods > 1, $D31*I31*(1+Cost_of_living_increase)^(2-Cost_of_living_increase_starts_on_Budget_Period_number+1), 0) -> 0 | K31: 0 | L31: =IF(Number_of_budget_periods > 1, $D31*K31*(1+Cost_of_living_increase)^(2-Cost_of_living_increase_starts_on_Budget_Period_number+1), 0) -> 0 | M31: 1 | N31: =IF(Number_of_budget_periods > 2, $D31*M31*(1+Cost_of_living_increase)^(2-Cost_of_living_increase_starts_on_Budget_Period_number+2), 0) -> 0 | O31: 0 | P31: =IF(Number_of_budget_periods > 2, $D31*O31*(1+Cost_of_living_increase)^(2-Cost_of_living_increase_starts_on_Budget_Period_number+2), 0) -> 0 | Q31: 1 | R31: =IF(Number_of_budget_periods > 3, $D31*Q31*(1+Cost_of_living_increase)^(2-Cost_of_living_increase_starts_on_Budget_Period_number+3), 0) -> 0 | S31: 0 | T31: =IF(Number_of_budget_periods > 3, $D31*S31*(1+Cost_of_living_increase)^(2-Cost_of_living_increase_starts_on_Budget_Period_number+3), 0) -> 0 | U31: 1 | V31: =IF(Number_of_budget_periods > 4, $D31*U31*(1+Cost_of_living_increase)^(2-Cost_of_living_increase_starts_on_Budget_Period_number+4), 0) -> 0 | W31: 0 | X31: =IF(Number_of_budget_periods > 4, $D31*W31*(1+Cost_of_living_increase)^(2-Cost_of_living_increase_starts_on_Budget_Period_number+4), 0) -> 0 | Y31: =SUM(F31,J31,N31,R31,V31) -> 0 | Z31: 0
B33: MONTHLY
B34: 61266 | C34: Academic Year | E34: 1 | F34: =IF(Number_of_budget_periods > 0, $D34*E34*(1+Cost_of_living_increase)^(2-Cost_of_living_increase_starts_on_Budget_Period_number), 0) -> 0 | G34: 0 | H34: =IF(Number_of_budget_periods > 0, $D34*G34*(1+Cost_of_living_increase)^(2-Cost_of_living_increase_starts_on_Budget_Period_number), 0) -> 0 | I34: =$E34 -> 1 | J34: =IF(Number_of_budget_periods > 1, $D34*I34*(1+Cost_of_living_increase)^(2-Cost_of_living_increase_starts_on_Budget_Period_number+1), 0) -> 0 | K34: =$G34 -> 0 | L34: =IF(Number_of_budget_periods > 1, $D34*K34*(1+Cost_of_living_increase)^(2-Cost_of_living_increase_starts_on_Budget_Period_number+1), 0) -> 0 | M34: =$E34 -> 1 | N34: =IF(Number_of_budget_periods > 2, $D34*M34*(1+Cost_of_living_increase)^(2-Cost_of_living_increase_starts_on_Budget_Period_number+2), 0) -> 0 | O34: =$G34 -> 0 | P34: =IF(Number_of_budget_periods > 2, $D34*O34*(1+Cost_of_living_increase)^(2-Cost_of_living_increase_starts_on_Budget_Period_number+2), 0) -> 0 | Q34: =$E34 -> 1 | R34: =IF(Number_of_budget_periods > 3, $D34*Q34*(1+Cost_of_living_increase)^(2-Cost_of_living_increase_starts_on_Budget_Period_number+3), 0) -> 0 | S34: =$G34 -> 0 | T34: =IF(Number_of_budget_periods > 3, $D34*S34*(1+Cost_of_living_increase)^(2-Cost_of_living_increase_starts_on_Budget_Period_number+3), 0) -> 0 | U34: =$E34 -> 1 | V34: =IF(Number_of_budget_periods > 4, $D34*U34*(1+Cost_of_living_increase)^(2-Cost_of_living_increase_starts_on_Budget_Period_number+4), 0) -> 0 | W34: =$G34 -> 0 | X34: =IF(Number_of_budget_periods > 4, $D34*W34*(1+Cost_of_living_increase)^(2-Cost_of_living_increase_starts_on_Budget_Period_number+4), 0) -> 0 | Y34: =SUM(F34,J34,N34,R34,V34) -> 0 | Z34: =SUM(H34,L34,P34,T34,X34) -> 0
B35: 61254 | C35: Summer | D35: =D34/3 -> 0 | E35: 1 | F35: =IF(Number_of_budget_periods > 0, $D35*E35*(1+Cost_of_living_increase)^(2-Cost_of_living_increase_starts_on_Budget_Period_number), 0) -> 0 | G35: 0 | H35: =IF(Number_of_budget_periods > 0, $D35*G35*(1+Cost_of_living_increase)^(2-Cost_of_living_increase_starts_on_Budget_Period_number), 0) -> 0 | I35: 1 | J35: =IF(Number_of_budget_periods > 1, $D35*I35*(1+Cost_of_living_increase)^(2-Cost_of_living_increase_starts_on_Budget_Period_number+1), 0) -> 0 | K35: 0 | L35: =IF(Number_of_budget_periods > 1, $D35*K35*(1+Cost_of_living_increase)^(2-Cost_of_living_increase_starts_on_Budget_Period_number+1), 0) -> 0 | M35: 1 | N35: =IF(Number_of_budget_periods > 2, $D35*M35*(1+Cost_of_living_increase)^(2-Cost_of_living_increase_starts_on_Budget_Period_number+2), 0) -> 0 | O35: 0 | P35: =IF(Number_of_budget_periods > 2, $D35*O35*(1+Cost_of_living_increase)^(2-Cost_of_living_increase_starts_on_Budget_Period_number+2), 0) -> 0 | Q35: 1 | R35: =IF(Number_of_budget_periods > 3, $D35*Q35*(1+Cost_of_living_increase)^(2-Cost_of_living_increase_starts_on_Budget_Period_number+3), 0) -> 0 | S35: 0 | T35: =IF(Number_of_budget_periods > 3, $D35*S35*(1+Cost_of_living_increase)^(2-Cost_of_living_increase_starts_on_Budget_Period_number+3), 0) -> 0 | U35: 1 | V35: =IF(Number_of_budget_periods > 4, $D35*U35*(1+Cost_of_living_increase)^(2-Cost_of_living_increase_starts_on_Budget_Period_number+4), 0) -> 0 | W35: 0 | X35: =IF(Number_of_budget_periods > 4, $D35*W35*(1+Cost_of_living_increase)^(2-Cost_of_living_increase_starts_on_Budget_Period_number+4), 0) -> 0 | Y35: =SUM(F35,J35,N35,R35,V35) -> 0 | Z35: 0
B36: 61666 | C36: 12 Month | E36: 1 | F36: =IF(Number_of_budget_periods > 0, $D36*E36*(1+Cost_of_living_increase)^(2-Cost_of_living_increase_starts_on_Budget_Period_number), 0) -> 0 | G36: 0 | H36: =IF(Number_of_budget_periods > 0, $D36*G36*(1+Cost_of_living_increase)^(2-Cost_of_living_increase_starts_on_Budget_Period_number), 0) -> 0 | I36: 1 | J36: =IF(Number_of_budget_periods > 1, $D36*I36*(1+Cost_of_living_increase)^(2-Cost_of_living_increase_starts_on_Budget_Period_number+1), 0) -> 0 | K36: 0 | L36: =IF(Number_of_budget_periods > 1, $D36*K36*(1+Cost_of_living_increase)^(2-Cost_of_living_increase_starts_on_Budget_Period_number+1), 0) -> 0 | M36: 1 | N36: =IF(Number_of_budget_periods > 2, $D36*M36*(1+Cost_of_living_increase)^(2-Cost_of_living_increase_starts_on_Budget_Period_number+2), 0) -> 0 | O36: 0 | P36: =IF(Number_of_budget_periods > 2, $D36*O36*(1+Cost_of_living_increase)^(2-Cost_of_living_increase_starts_on_Budget_Period_number+2), 0) -> 0 | Q36: 1 | R36: =IF(Number_of_budget_periods > 3, $D36*Q36*(1+Cost_of_living_increase)^(2-Cost_of_living_increase_starts_on_Budget_Period_number+3), 0) -> 0 | S36: 0 | T36: =IF(Number_of_budget_periods > 3, $D36*S36*(1+Cost_of_living_increase)^(2-Cost_of_living_increase_starts_on_Budget_Period_number+3), 0) -> 0 | U36: 1 | V36: =IF(Number_of_budget_periods > 4, $D36*U36*(1+Cost_of_living_increase)^(2-Cost_of_living_increase_starts_on_Budget_Period_number+4), 0) -> 0 | W36: 0 | X36: =IF(Number_of_budget_periods > 4, $D36*W36*(1+Cost_of_living_increase)^(2-Cost_of_living_increase_starts_on_Budget_Period_number+4), 0) -> 0 | Y36: =SUM(F36,J36,N36,R36,V36) -> 0 | Z36: =SUM(H36,L36,P36,T36,X36) -> 0
A38: II. Salaries and Wages - OTHER PERSONNEL
B39: MONTHLY | E39: 1 | F39: =IF(Number_of_budget_periods > 0, $D39*E39*(1+Cost_of_living_increase)^(2-Cost_of_living_increase_starts_on_Budget_Period_number), 0) -> 0 | G39: 0 | H39: =IF(Number_of_budget_periods > 0, $D39*G39*(1+Cost_of_living_increase)^(2-Cost_of_living_increase_starts_on_Budget_Period_number), 0) -> 0 | I39: =$E39 -> 1 | J39: =IF(Number_of_budget_periods > 1, $D39*I39*(1+Cost_of_living_increase)^(2-Cost_of_living_increase_starts_on_Budget_Period_number+1), 0) -> 0 | K39: =$G39 -> 0 | L39: =IF(Number_of_budget_periods > 1, $D39*K39*(1+Cost_of_living_increase)^(2-Cost_of_living_increase_starts_on_Budget_Period_number+1), 0) -> 0 | M39: =$E39 -> 1 | N39: =IF(Number_of_budget_periods > 2, $D39*M39*(1+Cost_of_living_increase)^(2-Cost_of_living_increase_starts_on_Budget_Period_number+2), 0) -> 0 | O39: =$G39 -> 0 | P39: =IF(Number_of_budget_periods > 2, $D39*O39*(1+Cost_of_living_increase)^(2-Cost_of_living_increase_starts_on_Budget_Period_number+2), 0) -> 0 | Q39: =$E39 -> 1 | R39: =IF(Number_of_budget_periods > 3, $D39*Q39*(1+Cost_of_living_increase)^(2-Cost_of_living_increase_starts_on_Budget_Period_number+3), 0) -> 0 | S39: =$G39 -> 0 | T39: =IF(Number_of_budget_periods > 3, $D39*S39*(1+Cost_of_living_increase)^(2-Cost_of_living_increase_starts_on_Budget_Period_number+3), 0) -> 0 | U39: =$E39 -> 1 | V39: =IF(Number_of_budget_periods > 4, $D39*U39*(1+Cost_of_living_increase)^(2-Cost_of_living_increase_starts_on_Budget_Period_number+4), 0) -> 0 | W39: =$G39 -> 0 | X39: =IF(Number_of_budget_periods > 4, $D39*W39*(1+Cost_of_living_increase)^(2-Cost_of_living_increase_starts_on_Budget_Period_number+4), 0) -> 0 | Y39: =SUM(F39,J39,N39,R39,V39) -> 0 | Z39: =SUM(H39,L39,P39,T39,X39) -> 0
B41: BI-WEEKLY | E41: 1 | F41: =IF(Number_of_budget_periods > 0, $D41*E41*(1+Cost_of_living_increase)^(2-Cost_of_living_increase_starts_on_Budget_Period_number), 0) -> 0 | G41: 0 | H41: =IF(Number_of_budget_periods > 0, $D41*G41*(1+Cost_of_living_increase)^(2-Cost_of_living_increase_starts_on_Budget_Period_number), 0) -> 0 | I41: =$E41 -> 1 | J41: =IF(Number_of_budget_periods > 1, $D41*I41*(1+Cost_of_living_increase)^(2-Cost_of_living_increase_starts_on_Budget_Period_number+1), 0) -> 0 | K41: =$G41 -> 0 | L41: =IF(Number_of_budget_periods > 1, $D41*K41*(1+Cost_of_living_increase)^(2-Cost_of_living_increase_starts_on_Budget_Period_number+1), 0) -> 0 | M41: =$E41 -> 1 | N41: =IF(Number_of_budget_periods > 2, $D41*M41*(1+Cost_of_living_increase)^(2-Cost_of_living_increase_starts_on_Budget_Period_number+2), 0) -> 0 | O41: =$G41 -> 0 | P41: =IF(Number_of_budget_periods > 2, $D41*O41*(1+Cost_of_living_increase)^(2-Cost_of_living_increase_starts_on_Budget_Period_number+2), 0) -> 0 | Q41: =$E41 -> 1 | R41: =IF(Number_of_budget_periods > 3, $D41*Q41*(1+Cost_of_living_increase)^(2-Cost_of_living_increase_starts_on_Budget_Period_number+3), 0) -> 0 | S41: =$G41 -> 0 | T41: =IF(Number_of_budget_periods > 3, $D41*S41*(1+Cost_of_living_increase)^(2-Cost_of_living_increase_starts_on_Budget_Period_number+3), 0) -> 0 | U41: =$E41 -> 1 | V41: =IF(Number_of_budget_periods > 4, $D41*U41*(1+Cost_of_living_increase)^(2-Cost_of_living_increase_starts_on_Budget_Period_number+4), 0) -> 0 | W41: =$G41 -> 0 | X41: =IF(Number_of_budget_periods > 4, $D41*W41*(1+Cost_of_living_increase)^(2-Cost_of_living_increase_starts_on_Budget_Period_number+4), 0) -> 0 | Y41: =SUM(F41,J41,N41,R41,V41) -> 0 | Z41: =SUM(H41,L41,P41,T41,X41) -> 0
B43: STUDENT EMPLOYEES
B44: Graduate Assistants | C44: # students | D44: Rate/Month
B45: 1. Academic year | E45: 1 | F45: =$C45*$D45*E45*9 -> 0 | G45: 0 | H45: =$C45*$D45*G45*9 -> 0 | I45: =$E45 -> 1 | J45: =IF(Number_of_budget_periods > 1, $C45*$D45*I45*9,0) -> 0 | K45: =$G45 -> 0 | L45: =IF(Number_of_budget_periods > 1, $C45*$D45*K45*9,0) -> 0 | M45: =$E45 -> 1 | N45: =IF(Number_of_budget_periods > 2, $C45*$D45*M45*9,0) -> 0 | O45: =$G45 -> 0 | P45: =IF(Number_of_budget_periods > 2, $C45*$D45*O45*9,0) -> 0 | Q45: =$E45 -> 1 | R45: =IF(Number_of_budget_periods > 3, $C45*$D45*Q45*9,0) -> 0 | S45: =$G45 -> 0 | T45: =IF(Number_of_budget_periods > 3, $C45*$D45*S45*9,0) -> 0 | U45: =$E45 -> 1 | V45: =IF(Number_of_budget_periods > 4, $C45*$D45*U45*9,0) -> 0 | W45: =$G45 -> 0 | X45: =IF(Number_of_budget_periods > 4, $C45*$D45*W45*9,0) -> 0 | Y45: =SUM(F45,J45,N45,R45,V45) -> 0 | Z45: =SUM(H45,L45,P45,T45,X45) -> 0
B46: 2. Summer | E46: 1 | F46: =$C46*$D46*E46*3 -> 0 | G46: 0 | H46: =$C46*$D46*G46*3 -> 0 | I46: =$E46 -> 1 | J46: =IF(Number_of_budget_periods > 1, $C46*$D46*I46*3,0) -> 0 | K46: =$G46 -> 0 | L46: =IF(Number_of_budget_periods > 1, $C46*$D46*K46*3,0) -> 0 | M46: =$E46 -> 1 | N46: =IF(Number_of_budget_periods > 2, $C46*$D46*M46*3,0) -> 0 | O46: =$G46 -> 0 | P46: =IF(Number_of_budget_periods > 2, $C46*$D46*O46*3,0) -> 0 | Q46: =$E46 -> 1 | R46: =IF(Number_of_budget_periods > 3, $C46*$D46*Q46*3,0) -> 0 | S46: =$G46 -> 0 | T46: =IF(Number_of_budget_periods > 3, $C46*$D46*S46*3,0) -> 0 | U46: =$E46 -> 1 | V46: =IF(Number_of_budget_periods > 4, $C46*$D46*U46*3,0) -> 0 | W46: =$G46 -> 0 | X46: =IF(Number_of_budget_periods > 4, $C46*$D46*W46*3,0) -> 0 | Y46: =SUM(F46,J46,N46,R46,V46) -> 0 | Z46: =SUM(H46,L46,P46,T46,X46) -> 0
B48: Student Workers - hourly
B49: # students | C49: # hours / year | D49: Rate/Hour
E50: 1 | F50: =$B50*$C50*$D50*E50 -> 0 | G50: 0 | H50: =$B50*$C50*$D50*G50 -> 0 | I50: =$E50 -> 1 | J50: =IF(Number_of_budget_periods > 1, $B50*$C50*$D50*I50,0) -> 0 | K50: =$G50 -> 0 | L50: =IF(Number_of_budget_periods > 1, $B50*$C50*$D50*K50,0) -> 0 | M50: =$E50 -> 1 | N50: =IF(Number_of_budget_periods > 2, $B50*$C50*$D50*M50,0) -> 0 | O50: =$G50 -> 0 | P50: =IF(Number_of_budget_periods > 2, $B50*$C50*$D50*O50,0) -> 0 | Q50: =$E50 -> 1 | R50: =IF(Number_of_budget_periods > 3, $B50*$C50*$D50*Q50,0) -> 0 | S50: =$G50 -> 0 | T50: =IF(Number_of_budget_periods > 3, $B50*$C50*$D50*S50,0) -> 0 | U50: =$E50 -> 1 | V50: =IF(Number_of_budget_periods > 4, $B50*$C50*$D50*U50,0) -> 0 | W50: =$G50 -> 0 | X50: =IF(Number_of_budget_periods > 4, $B50*$C50*$D50*W50,0) -> 0 | Y50: =SUM(F50,J50,N50,R50,V50) -> 0 | Z50: =SUM(H50,L50,P50,T50,X50) -> 0
B51: TEMPORARY EMPLOYEES
A52: # hours | B52: Insurance | C52: Title | D52: Rate/Hour
E53: 1 | F53: =$A53*$D53*E53 -> 0 | G53: 0 | H53: =$A53*$D53*G53 -> 0 | I53: =$E53 -> 1 | J53: =IF(Number_of_budget_periods > 1, $A53*$D53*I53,0) -> 0 | K53: =$G53 -> 0 | L53: =IF(Number_of_budget_periods > 1, $A53*$D53*K53,0) -> 0 | M53: =$E53 -> 1 | N53: =IF(Number_of_budget_periods > 2, $A53*$D53*M53,0) -> 0 | O53: =$G53 -> 0 | P53: =IF(Number_of_budget_periods > 2, $A53*$D53*O53,0) -> 0 | Q53: =$E53 -> 1 | R53: =IF(Number_of_budget_periods > 3, $A53*$D53*Q53,0) -> 0 | S53: =$G53 -> 0 | T53: =IF(Number_of_budget_periods > 3, $A53*$D53*S53,0) -> 0 | U53: =$E53 -> 1 | V53: =IF(Number_of_budget_periods > 4, $A53*$D53*U53,0) -> 0 | W53: =$G53 -> 0 | X53: =IF(Number_of_budget_periods > 4, $A53*$D53*W53,0) -> 0 | Y53: =SUM(F53,J53,N53,R53,V53) -> 0 | Z53: =SUM(H53,L53,P53,T53,X53) -> 0
D55: Subtotal - Salaries and Wages | F55: =SUM(F23:F54) -> 0 | H55: =SUM(H23:H54) -> 0 | J55: =SUM(J23:J54) -> 0 | L55: =SUM(L23:L54) -> 0 | N55: =SUM(N23:N54) -> 0 | P55: =SUM(P23:P54) -> 0 | R55: =SUM(R23:R54) -> 0 | T55: =SUM(T23:T54) -> 0 | V55: =SUM(V23:V54) -> 0 | X55: =SUM(X23:X54) -> 0 | Y55: =SUM(Y23:Y54) -> 0 | Z55: =SUM(Z23:Z54) -> 0
A56: III. Fringe Benefits
B57: Salaried Employees (monthly) | D57: ='Validation Data'!$E$2 -> 0.3586 | F57: =$D57*SUM(F23:F40) -> 0 | H57: =$D57*SUM(H23:H40) -> 0 | J57: =$D57*SUM(J23:J40) -> 0 | L57: =$D57*SUM(L23:L40) -> 0 | N57: =$D57*SUM(N23:N40) -> 0 | P57: =$D57*SUM(P23:P40) -> 0 | R57: =$D57*SUM(R23:R40) -> 0 | T57: =$D57*SUM(T23:T40) -> 0 | V57: =$D57*SUM(V23:V40) -> 0 | X57: =$D57*SUM(X23:X40) -> 0 | Y57: =SUM(F57,J57,N57,R57,V57) -> 0 | Z57: =SUM(H57,L57,P57,T57,X57) -> 0
B58: Graduate Assistants - Academic Year | D58: ='Validation Data'!$E$6 -> 0.012 | F58: =SUMPRODUCT((MOD(ROW(F45:F47),2)=1)*(F45:F47))*GA_Academic_rate -> 0 | H58: =SUMPRODUCT((MOD(ROW(H45:H47),2)=1)*(H45:H47))*GA_Academic_rate -> 0 | J58: =SUMPRODUCT((MOD(ROW(J45:J47),2)=1)*(J45:J47))*GA_Academic_rate -> 0 | L58: =SUMPRODUCT((MOD(ROW(L45:L47),2)=1)*(L45:L47))*GA_Academic_rate -> 0 | N58: =SUMPRODUCT((MOD(ROW(N45:N47),2)=1)*(N45:N47))*GA_Academic_rate -> 0 | P58: =SUMPRODUCT((MOD(ROW(P45:P47),2)=1)*(P45:P47))*GA_Academic_rate -> 0 | R58: =SUMPRODUCT((MOD(ROW(R45:R47),2)=1)*(R45:R47))*GA_Academic_rate -> 0 | T58: =SUMPRODUCT((MOD(ROW(T45:T47),2)=1)*(T45:T47))*GA_Academic_rate -> 0 | V58: =SUMPRODUCT((MOD(ROW(V45:V47),2)=1)*(V45:V47))*GA_Academic_rate -> 0 | X58: =SUMPRODUCT((MOD(ROW(X45:X47),2)=1)*(X45:X47))*GA_Academic_rate -> 0 | Y58: 0 | Z58: =SUM(H58,L58,P58,T58,X58) -> 0
B59: Graduate Assistants - Summer | D59: ='Validation Data'!$E$6 -> 0.012 | F59: =SUMPRODUCT((MOD(ROW(F45:F47),2)=0)*(F45:F47))*GA_Academic_rate -> 0 | H59: =SUMPRODUCT((MOD(ROW(H45:H47),2)=0)*(H45:H47))*GA_Academic_rate -> 0 | J59: =SUMPRODUCT((MOD(ROW(J45:J47),2)=0)*(J45:J47))*GA_Academic_rate -> 0 | L59: =SUMPRODUCT((MOD(ROW(L45:L47),2)=0)*(L45:L47))*GA_Academic_rate -> 0 | N59: =SUMPRODUCT((MOD(ROW(N45:N47),2)=0)*(N45:N47))*GA_Academic_rate -> 0 | P59: =SUMPRODUCT((MOD(ROW(P45:P47),2)=0)*(P45:P47))*GA_Academic_rate -> 0 | R59: =SUMPRODUCT((MOD(ROW(R45:R47),2)=0)*(R45:R47))*GA_Academic_rate -> 0 | T59: =SUMPRODUCT((MOD(ROW(T45:T47),2)=0)*(T45:T47))*GA_Academic_rate -> 0 | V59: =SUMPRODUCT((MOD(ROW(V45:V47),2)=0)*(V45:V47))*GA_Academic_rate -> 0 | X59: =SUMPRODUCT((MOD(ROW(X45:X47),2)=0)*(X45:X47))*GA_Academic_rate -> 0 | Y59: 0 | Z59: 0
B60: Student Workers (undergraduate) | D60: ='Validation Data'!$E$6 -> 0.012 | F60: =$D60*F50 -> 0 | H60: =$D60*H50 -> 0 | J60: =$D60*J50 -> 0 | L60: =$D60*L50 -> 0 | N60: =$D60*N50 -> 0 | P60: =$D60*P50 -> 0 | R60: =$D60*R50 -> 0 | T60: =$D60*T50 -> 0 | V60: =$D60*V50 -> 0 | X60: =$D60*X50 -> 0 | Y60: 0 | Z60: 0
B61: Hourly Employees | D61: ='Validation Data'!$E$3 -> 0.5283 | F61: =$D61*SUM(F41:F42) -> 0 | H61: =$D61*SUM(H41:H42) -> 0 | J61: =$D61*SUM(J41:J42) -> 0 | L61: =$D61*SUM(L41:L42) -> 0 | N61: =$D61*SUM(N41:N42) -> 0 | P61: =$D61*SUM(P41:P42) -> 0 | R61: =$D61*SUM(R41:R42) -> 0 | T61: =$D61*SUM(T41:T42) -> 0 | V61: =$D61*SUM(V41:V42) -> 0 | X61: =$D61*SUM(X41:X42) -> 0 | Y61: 0 | Z61: 0
B62: Temporary Employees (No Insurance) | D62: ='Validation Data'!$E$4 -> 0.0744 | F62: =SUMPRODUCT(--ISNUMBER(SEARCH("No",$B53:$B54)),F53:F54)*Temp_rate -> 0 | H62: =SUMPRODUCT(--ISNUMBER(SEARCH("No",$B53:$B54)),H53:H54)*Temp_rate -> 0 | J62: =SUMPRODUCT(--ISNUMBER(SEARCH("No",$B53:$B54)),J53:J54)*Temp_rate -> 0 | L62: =SUMPRODUCT(--ISNUMBER(SEARCH("No",$B53:$B54)),L53:L54)*Temp_rate -> 0 | N62: =SUMPRODUCT(--ISNUMBER(SEARCH("No",$B53:$B54)),N53:N54)*Temp_rate -> 0 | P62: =SUMPRODUCT(--ISNUMBER(SEARCH("No",$B53:$B54)),P53:P54)*Temp_rate -> 0 | R62: =SUMPRODUCT(--ISNUMBER(SEARCH("No",$B53:$B54)),R53:R54)*Temp_rate -> 0 | T62: =SUMPRODUCT(--ISNUMBER(SEARCH("No",$B53:$B54)),T53:T54)*Temp_rate -> 0 | V62: =SUMPRODUCT(--ISNUMBER(SEARCH("No",$B53:$B54)),V53:V54)*Temp_rate -> 0 | X62: =SUMPRODUCT(--ISNUMBER(SEARCH("No",$B53:$B54)),X53:X54)*Temp_rate -> 0 | Y62: 0 | Z62: 0
B63: Tempoary Employees (Insurance) | D63: ='Validation Data'!$E$5 -> 0.144 | F63: =SUMPRODUCT(--ISNUMBER(SEARCH("Yes",$B53:$B54)),F53:F54)*Temp_no_insurance_rate -> 0 | H63: =SUMPRODUCT(--ISNUMBER(SEARCH("Yes",$B53:$B54)),H53:H54)*Temp_no_insurance_rate -> 0 | J63: =SUMPRODUCT(--ISNUMBER(SEARCH("Yes",$B53:$B54)),J53:J54)*Temp_no_insurance_rate -> 0 | L63: =SUMPRODUCT(--ISNUMBER(SEARCH("Yes",$B53:$B54)),L53:L54)*Temp_no_insurance_rate -> 0 | N63: =SUMPRODUCT(--ISNUMBER(SEARCH("Yes",$B53:$B54)),N53:N54)*Temp_no_insurance_rate -> 0 | P63: =SUMPRODUCT(--ISNUMBER(SEARCH("Yes",$B53:$B54)),P53:P54)*Temp_no_insurance_rate -> 0 | R63: =SUMPRODUCT(--ISNUMBER(SEARCH("Yes",$B53:$B54)),R53:R54)*Temp_no_insurance_rate -> 0 | T63: =SUMPRODUCT(--ISNUMBER(SEARCH("Yes",$B53:$B54)),T53:T54)*Temp_no_insurance_rate -> 0 | V63: =SUMPRODUCT(--ISNUMBER(SEARCH("Yes",$B53:$B54)),V53:V54)*Temp_no_insurance_rate -> 0 | X63: =SUMPRODUCT(--ISNUMBER(SEARCH("Yes",$B53:$B54)),X53:X54)*Temp_no_insurance_rate -> 0 | Y63: 0 | Z63: 0
D64: Subtotal - Fringe Benefits | F64: =SUM(F57:F63) -> 0 | H64: =SUM(H57:H63) -> 0 | J64: =SUM(J57:J63) -> 0 | L64: =SUM(L57:L63) -> 0 | N64: =SUM(N57:N63) -> 0 | P64: =SUM(P57:P63) -> 0 | R64: =SUM(R57:R63) -> 0 | T64: =SUM(T57:T63) -> 0 | V64: =SUM(V57:V63) -> 0 | X64: =SUM(X57:X63) -> 0 | Y64: =SUM(Y57:Y63) -> 0 | Z64: =SUM(Z57:Z63) -> 0
A65: IV. Equipment > $5,000 | C65: Name of Instrument
Y66: =F66+IF(Number_of_budget_periods > 1, J66,0)+IF(Number_of_budget_periods > 2, N66,0)+IF(Number_of_budget_periods > 3, R66,0)+IF(Number_of_budget_periods > 4, V66,0) -> 0 | Z66: =H66+IF(Number_of_budget_periods > 1, L66,0)+IF(Number_of_budget_periods > 2, P66,0)+IF(Number_of_budget_periods > 3, T66,0)+IF(Number_of_budget_periods > 4, X66,0) -> 0
D68: Subtotal - Equipment | F68: =SUM(F66:F67) -> 0 | H68: =SUM(H66:H67) -> 0 | J68: =IF(Number_of_budget_periods > 1, SUM(J66:J67), 0) -> 0 | L68: =IF(Number_of_budget_periods > 1, SUM(L66:L67), 0) -> 0 | N68: =IF(Number_of_budget_periods > 2, SUM(N66:N67), 0) -> 0 | P68: =IF(Number_of_budget_periods > 2, SUM(P66:P67), 0) -> 0 | R68: =IF(Number_of_budget_periods > 3, SUM(R66:R67), 0) -> 0 | T68: =IF(Number_of_budget_periods > 3, SUM(T66:T67), 0) -> 0 | V68: =IF(Number_of_budget_periods > 4, SUM(V66:V67), 0) -> 0 | X68: =IF(Number_of_budget_periods > 4, SUM(X66:X67), 0) -> 0 | Y68: =SUM(Y66:Y67) -> 0 | Z68: =SUM(Z66:Z67) -> 0
A69: V. Travel | B69: Select domestic or international
B70: -- | Y70: =F70+IF(Number_of_budget_periods > 1, J70,0)+IF(Number_of_budget_periods > 2, N70,0)+IF(Number_of_budget_periods > 3, R70,0)+IF(Number_of_budget_periods > 4, V70,0) -> 0 | Z70: =H70+IF(Number_of_budget_periods > 1, L70,0)+IF(Number_of_budget_periods > 2, P70,0)+IF(Number_of_budget_periods > 3, T70,0)+IF(Number_of_budget_periods > 4, X70,0) -> 0
D72: Subtotal - Travel | F72: =SUM(F70:F71) -> 0 | H72: =SUM(H70:H71) -> 0 | J72: =IF(Number_of_budget_periods > 1, SUM(J70:J71), 0) -> 0 | L72: =IF(Number_of_budget_periods > 1, SUM(L70:L71), 0) -> 0 | N72: =IF(Number_of_budget_periods > 2, SUM(N70:N71), 0) -> 0 | P72: =IF(Number_of_budget_periods > 2, SUM(P70:P71), 0) -> 0 | R72: =IF(Number_of_budget_periods > 3, SUM(R70:R71), 0) -> 0 | T72: =IF(Number_of_budget_periods > 3, SUM(T70:T71), 0) -> 0 | V72: =IF(Number_of_budget_periods > 4, SUM(V70:V71), 0) -> 0 | X72: =IF(Number_of_budget_periods > 4, SUM(X70:X71), 0) -> 0 | Y72: =SUM(Y70:Y71) -> 0 | Z72: =SUM(Z70:Z71) -> 0
A73: VI. Participant Support | C73: # Participants | D73: Amount
E74: 1 | F74: =$C74*$D74*$E74 -> 0 | G74: =1-E74 -> 0 | H74: =$C74*$D74*$G74 -> 0 | I74: =E74 -> 1 | J74: =IF(Number_of_budget_periods > 1, $C74*$D74*$E74,0) -> 0 | K74: =1-I74 -> 0 | L74: =IF(Number_of_budget_periods > 1, $C74*$D74*$G74,0) -> 0 | M74: =I74 -> 1 | N74: =IF(Number_of_budget_periods > 2, $C74*$D74*$E74,0) -> 0 | O74: =1-M74 -> 0 | P74: =IF(Number_of_budget_periods > 2, $C74*$D74*$G74,0) -> 0 | Q74: =M74 -> 1 | R74: =IF(Number_of_budget_periods > 3, $C74*$D74*$E74,0) -> 0 | S74: =1-Q74 -> 0 | T74: =IF(Number_of_budget_periods > 3, $C74*$D74*$G74,0) -> 0 | U74: =Q74 -> 1 | V74: =IF(Number_of_budget_periods > 4, $C74*$D74*$E74,0) -> 0 | W74: =1-U74 -> 0 | X74: =IF(Number_of_budget_periods > 4, $C74*$D74*$G74,0) -> 0 | Y74: =SUM(F74,J74,N74,R74,V74) -> 0 | Z74: =SUM(H74,L74,P74,T74,X74) -> 0
D76: Subtotal - Participant Support | F76: =SUM(F74:F75) -> 0 | H76: =SUM(H74:H75) -> 0 | J76: =SUM(J74:J75) -> 0 | L76: =SUM(L74:L75) -> 0 | N76: =SUM(N74:N75) -> 0 | P76: =SUM(P74:P75) -> 0 | R76: =SUM(R74:R75) -> 0 | T76: =SUM(T74:T75) -> 0 | V76: =SUM(V74:V75) -> 0 | X76: =SUM(X74:X75) -> 0 | Y76: =SUM(Y74:Y75) -> 0 | Z76: =SUM(Z74:Z75) -> 0
A77: VII. Other Direct Costs
B78: Materials & Supplies (Unit cost under $5,000)
Y79: =F79+IF(Number_of_budget_periods > 1, J79,0)+IF(Number_of_budget_periods > 2, N79,0)+IF(Number_of_budget_periods > 3, R79,0)+IF(Number_of_budget_periods > 4, V79,0) -> 0 | Z79: =H79+IF(Number_of_budget_periods > 1, L79,0)+IF(Number_of_budget_periods > 2, P79,0)+IF(Number_of_budget_periods > 3, T79,0)+IF(Number_of_budget_periods > 4, X79,0) -> 0
B81: Publication Costs | Y81: =F81+IF(Number_of_budget_periods > 1, J81,0)+IF(Number_of_budget_periods > 2, N81,0)+IF(Number_of_budget_periods > 3, R81,0)+IF(Number_of_budget_periods > 4, V81,0) -> 0 | Z81: =H81+IF(Number_of_budget_periods > 1, L81,0)+IF(Number_of_budget_periods > 2, P81,0)+IF(Number_of_budget_periods > 3, T81,0)+IF(Number_of_budget_periods > 4, X81,0) -> 0
B83: Consultant Services
A84: Name | Y84: =F84+IF(Number_of_budget_periods > 1, J84,0)+IF(Number_of_budget_periods > 2, N84,0)+IF(Number_of_budget_periods > 3, R84,0)+IF(Number_of_budget_periods > 4, V84,0) -> 0 | Z84: =H84+IF(Number_of_budget_periods > 1, L84,0)+IF(Number_of_budget_periods > 2, P84,0)+IF(Number_of_budget_periods > 3, T84,0)+IF(Number_of_budget_periods > 4, X84,0) -> 0
B86: Computer Services | Y86: =F86+IF(Number_of_budget_periods > 1, J86,0)+IF(Number_of_budget_periods > 2, N86,0)+IF(Number_of_budget_periods > 3, R86,0)+IF(Number_of_budget_periods > 4, V86,0) -> 0 | Z86: =H86+IF(Number_of_budget_periods > 1, L86,0)+IF(Number_of_budget_periods > 2, P86,0)+IF(Number_of_budget_periods > 3, T86,0)+IF(Number_of_budget_periods > 4, X86,0) -> 0
B88: Subawards/Contractual
B89: Organization Name | F89: Amount | G89: Exclude | H89: Include | J89: Amount | K89: Exclude | L89: Include | N89: Amount | O89: Exclude | P89: Include | R89: Amount | S89: Exclude | T89: Include | V89: Amount | W89: Exclude | X89: Include
G90: =IF(F90<25000,0,(F90-25000)) -> 0 | H90: =F90-G90 -> 0 | J90: =IF(Number_of_budget_periods > 1, $F90, 0) -> 0 | K90: =IF(Number_of_budget_periods>1,IF(SUM(H90)>25000,J90,IF(SUM(H90,J90)<25000,0,SUM(H90,J90)-25000)),0) -> 0 | L90: =IF(Number_of_budget_periods > 1, J90-K90,0) -> 0 | N90: =IF(Number_of_budget_periods > 2, $F90, 0) -> 0 | O90: =IF(Number_of_budget_periods > 2, IF(SUM(L90,H90) > 25000, N90, IF(SUM(H90,L90,N90) < 25000, 0, SUM(H90, L90,N90)-25000)),0) -> 0 | P90: =IF(Number_of_budget_periods > 2, N90-O90,0) -> 0 | R90: =IF(Number_of_budget_periods > 3, $F90, 0) -> 0 | S90: =IF(Number_of_budget_periods > 3, IF(SUM(H90,P90,L90) > 25000, R90, IF(SUM(H90,L90,P90,R90) < 25000, 0, SUM(H90,L90, P90,R90)-25000)),0) -> 0 | T90: =IF(Number_of_budget_periods > 3, R90-S90,0) -> 0 | V90: =IF(Number_of_budget_periods > 4, $F90, 0) -> 0 | W90: =IF(Number_of_budget_periods > 4, IF(SUM(H90,L90,T90,P90) > 25000, V90, IF(SUM(H90,L90,P90,T90,V90) < 25000, 0, SUM(H90,L90,P90, T90,V90)-25000)),0) -> 0 | X90: =IF(Number_of_budget_periods > 4, V90-W90,0) -> 0 | Y90: =F90+IF(Number_of_budget_periods > 1, J90,0)+IF(Number_of_budget_periods > 2, N90,0)+IF(Number_of_budget_periods > 3, R90,0)+IF(Number_of_budget_periods > 4, V90,0) -> 0
B92: Other - Tuition/Fees for Graduate Students
B93: % Increase | C93: Number of Students | D93: Hours
B94: 0 | C94: 0 | D94: 10 | E94: 1 | F94: =('Validation Data'!E18*MIN($D94,10)*(1+$B$94)+MIN($D94, 10)*'Validation Data'!G18)*E94*2*$C$94 -> 0 | G94: =1-E94 -> 0 | H94: =('Validation Data'!E18*MIN($D94,10)*(1+$B$94)+MIN($D94, 10)*'Validation Data'!G18)*G94*2*$C$94 -> 0 | I94: =E94 -> 1 | J94: =IF(Number_of_budget_periods > 1,('Validation Data'!E18*MIN($D94,10)*(1+$B$94)^2+MIN($D94, 10)*'Validation Data'!G18)*I94*2*$C$94,0) -> 0 | K94: =1-I94 -> 0 | L94: =IF(Number_of_budget_periods > 1,('Validation Data'!E18*MIN($D94,10)*(1+$B$94)^2+MIN($D94, 10)*'Validation Data'!G18)*K94*2*$C$94,0) -> 0 | M94: =I94 -> 1 | N94: =IF(Number_of_budget_periods > 2, ('Validation Data'!E18*MIN($D94,10)*(1+$B$94)^3+MIN($D94, 10)*'Validation Data'!G18)*M94*2*$C$94,0) -> 0 | O94: =1-M94 -> 0 | P94: =IF(Number_of_budget_periods > 2, ('Validation Data'!E18*MIN($D94,10)*(1+$B$94)^3+MIN($D94, 10)*'Validation Data'!G18)*O94*2*$C$94,0) -> 0 | Q94: =M94 -> 1 | R94: =IF(Number_of_budget_periods > 3,('Validation Data'!E18*MIN($D94,10)*(1+$B$94)^4+MIN($D94, 10)*'Validation Data'!G18)*Q94*2*$C$94,0) -> 0 | S94: =1-Q94 -> 0 | T94: =IF(Number_of_budget_periods > 3,('Validation Data'!E18*MIN($D94,10)*(1+$B$94)^4+MIN($D94, 10)*'Validation Data'!G18)*S94*2*$C$94,0) -> 0 | U94: =Q94 -> 1 | V94: =IF(Number_of_budget_periods > 4, ('Validation Data'!E18*MIN($D94,10)*(1+$B$94)^5+MIN($D94, 10)*'Validation Data'!G18)*U94*2*$C$94,0) -> 0 | W94: =1-U94 -> 0 | X94: =IF(Number_of_budget_periods > 4, ('Validation Data'!E18*MIN($D94,10)*(1+$B$94)^5+MIN($D94, 10)*'Validation Data'!G18)*W94*2*$C$94,0) -> 0 | Y94: =SUM(F94,J94,N94,R94,V94) -> 0 | Z94: =SUM(H94,L94,P94,T94,X94) -> 0
C95: Special Course Fees (from Tab) | D95: ='Special Course Fees'!G13 -> 0 | E95: 1 | F95: =$D95*E95 -> 0 | G95: =1-E95 -> 0 | H95: =$D95*G95 -> 0 | I95: =E95 -> 1 | J95: =IF(Number_of_budget_periods > 1, $D95*I95,0) -> 0 | K95: =1-I95 -> 0 | L95: =IF(Number_of_budget_periods > 1, $D95*K95,0) -> 0 | M95: =I95 -> 1 | N95: =IF(Number_of_budget_periods > 2, $D95*M95,0) -> 0 | O95: =1-M95 -> 0 | P95: =IF(Number_of_budget_periods > 2, $D95*O95,0) -> 0 | Q95: =M95 -> 1 | R95: =IF(Number_of_budget_periods > 3, $D95*Q95,0) -> 0 | S95: =1-Q95 -> 0 | T95: =IF(Number_of_budget_periods > 3, $D95*S95,0) -> 0 | U95: =Q95 -> 1 | V95: =IF(Number_of_budget_periods > 4, $D95*U95,0) -> 0 | W95: =1-U95 -> 0 | X95: =IF(Number_of_budget_periods > 4, $D95*W95,0) -> 0 | Y95: =SUM(F95,J95,N95,R95,V95) -> 0 | Z95: =SUM(H95,L95,P95,T95,X95) -> 0
D96: Subtotal - Tuition and Fees | F96: =SUM(F94:F95) -> 0 | H96: =SUM(H94:H95) -> 0 | J96: =SUM(J94:J95) -> 0 | L96: =SUM(L94:L95) -> 0 | N96: =SUM(N94:N95) -> 0 | P96: =SUM(P94:P95) -> 0 | R96: =SUM(R94:R95) -> 0 | T96: =SUM(T94:T95) -> 0 | V96: =SUM(V94:V95) -> 0 | X96: =SUM(X94:X95) -> 0 | Y96: =SUM(F96,J96,N96,R96,V96) -> 0 | Z96: =SUM(H96,L96,P96,T96,X96) -> 0
B97: Other | C97: Items
Y98: =SUM(F98,J98,N98,R98,V98) -> 0 | Z98: =SUM(H98,L98,P98,T98,X98) -> 0
D100: Subtotal - Other Direct Costs | F100: =SUM(F78:F86)+SUM(F94:F95)+SUM(F90:F91)+SUM(F98:F99) -> 0 | H100: =SUM(H78:H86)+SUM(H94:H95)+SUM(H98:H99) -> 0 | J100: =IF(Number_of_budget_periods > 1, SUM(J78:J86)+SUM(J94:J95)+SUM(J90:J91)+SUM(J98:J99),0) -> 0 | L100: =IF(Number_of_budget_periods > 1, SUM(L78:L86)+SUM(L94:L95)+SUM(L98:L99), 0) -> 0 | N100: =IF(Number_of_budget_periods > 2, SUM(N78:N86)+SUM(N94:N95)+SUM(N90:N91)+SUM(N98:N99),0) -> 0 | P100: =IF(Number_of_budget_periods > 2, SUM(P78:P86)+SUM(P94:P95)+SUM(P98:P99), 0) -> 0 | R100: =IF(Number_of_budget_periods > 3, SUM(R78:R86)+SUM(R94:R95)+SUM(R90:R91)+SUM(R98:R99),0) -> 0 | T100: =IF(Number_of_budget_periods > 3, SUM(T78:T86)+SUM(T94:T95)+SUM(T98:T99), 0) -> 0 | V100: =IF(Number_of_budget_periods > 4, SUM(V78:V86)+SUM(V94:V95)+SUM(V90:V91)+SUM(V98:V99),0) -> 0 | X100: =IF(Number_of_budget_periods > 4, SUM(X78:X86)+SUM(X94:X95)+SUM(X98:X99), 0) -> 0 | Y100: =SUM(F100,J100,N100,R100,V100) -> 0 | Z100: =SUM(H100,L100,P100,T100,X100) -> 0
A101: TOTALS
D102: Total Direct Costs | F102: =SUM(F55,F64,F72,F68,F100,F76) -> 0 | H102: =IF($C$15="Yes", SUM(H55,H64,H72,H68,H100,H76), 0) -> 0 | J102: =SUM(J55,J64,J72,J68,J100,J76) -> 0 | L102: =IF($C$15="Yes",SUM(L55,L64,L72,L68,L100,L76),0) -> 0 | N102: =SUM(N55,N64,N72,N68,N100,N76) -> 0 | P102: =IF($C$15="Yes",SUM(P55,P64,P72,P68,P100,P76),0) -> 0 | R102: =SUM(R55,R64,R72,R68,R100,R76) -> 0 | T102: =IF($C$15="Yes",SUM(T55,T64,T72,T68,T100,T76),0) -> 0 | V102: =SUM(V55,V64,V72,V68,V100,V76) -> 0 | X102: =IF($C$15="Yes",SUM(X55,X64,X72,X68,X100,X76),0) -> 0 | Y102: =SUM(V102,R102,N102,J102,F102) -> 0 | Z102: =SUM(X102,T102,P102,L102,H102) -> 0
D103: Base for F&A | F103: =IF($C$104 = "TDC", F102,F102-SUM(G90:G91)-F76-F96-F68) -> 0 | H103: =IF($C$104 = "TDC", H102,H102-H76-H96-H68) -> 0 | J103: =IF($C$104 = "TDC", J102,J102-SUM(K90:K91)-J76-J96-J68) -> 0 | L103: =IF($C$104 = "TDC", L102,L102-L76-L96-L68) -> 0 | N103: =IF($C$104 = "TDC", N102,N102-SUM(O90:O91)-N76-N96-N68) -> 0 | P103: =IF($C$104 = "TDC", P102,P102-P76-P96-P68) -> 0 | R103: =IF($C$104 = "TDC", R102,R102-SUM(S90:S91)-R76-R96-R68) -> 0 | T103: =IF($C$104 = "TDC", T102,T102-T76-T96-T68) -> 0 | V103: =IF($C$104 = "TDC", V102,V102-SUM(W90:W91)-V76-V96-V68) -> 0 | X103: =IF($C$104 = "TDC", X102,X102-X76-X96-X68) -> 0 | Y103: =SUM(V103,R103,N103,J103,F103) -> 0 | Z103: =SUM(X103,T103,P103,L103,H103) -> 0
A104: Facilities & Admin Costs | C104: =$B$9 -> Select One | D104: =$B$10 -> 0 | F104: =IF($C$104="MTDC", $D$104*F103, IF($C$104="TDC", $D$104*F102,0)) -> 0 | H104: =IF($C$15="Yes",IF($C$104="MTDC", $D$104*H103, IF($C$104="TDC", $D$104*H102,0)),0) -> 0 | J104: =IF($C$104="MTDC", $D$104*J103, IF($C$104="TDC", $D$104*J102,0)) -> 0 | L104: =IF($C$15="Yes",IF($C$104="MTDC", $D$104*L103, IF($C$104="TDC", $D$104*L102,0)),0) -> 0 | N104: =IF($C$104="MTDC", $D$104*N103, IF($C$104="TDC", $D$104*N102,0)) -> 0 | P104: =IF($C$15="Yes",IF($C$104="MTDC", $D$104*P103, IF($C$104="TDC", $D$104*P102,0)),0) -> 0 | R104: =IF($C$104="MTDC", $D$104*R103, IF($C$104="TDC", $D$104*R102,0)) -> 0 | T104: =IF($C$15="Yes",IF($C$104="MTDC", $D$104*T103, IF($C$104="TDC", $D$104*T102,0)),0) -> 0 | V104: =IF($C$104="MTDC", $D$104*V103, IF($C$104="TDC", $D$104*V102,0)) -> 0 | X104: =IF($C$15="Yes",IF($C$104="MTDC", $D$104*X103, IF($C$104="TDC", $D$104*X102,0)),0) -> 0 | Y104: =SUM(V104,R104,N104,J104,F104) -> 0 | Z104: =SUM(X104,T104,P104,L104,H104) -> 0
D105: Total Sponsor Costs/Total UM Cost Share | F105: =F104+F102 -> 0 | H105: =IF($C$15="Yes",H104+H102,0) -> 0 | J105: =J104+J102 -> 0 | L105: =IF($C$15="Yes",L104+L102,0) -> 0 | N105: =N104+N102 -> 0 | P105: =IF($C$15="Yes",P104+P102,0) -> 0 | R105: =R104+R102 -> 0 | T105: =IF($C$15="Yes",T104+T102,0) -> 0 | V105: =V104+V102 -> 0 | X105: =IF($C$15="Yes",X104+X102,0) -> 0 | Y105: =SUM(V105,R105,N105,J105,F105) -> 0 | Z105: =SUM(X105,T105,P105,L105,H105) -> 0
D106: Third Party Cost Share (from Tab) | H106: ='3rd Party Cost Share'!B16 -> 0 | L106: ='3rd Party Cost Share'!C16 -> 0 | P106: ='3rd Party Cost Share'!D16 -> 0 | T106: ='3rd Party Cost Share'!E16 -> 0 | X106: ='3rd Party Cost Share'!F16 -> 0 | Z106: =SUM(X106,T106,P106,L106,H106) -> 0
D107: Total Project Costs (Sponsored + cost share) | F107: =SUM(F105+H105+H106) -> 0 | J107: =SUM(J105+L105+L106) -> 0 | N107: =SUM(N105+P105+P106) -> 0 | R107: =SUM(R105+T105+T106) -> 0 | V107: =SUM(V105+X105+X106) -> 0 | Y107: =SUM(Y105+Z105+Z106) -> 0

Sheet Fringe Detail
A1: Fringe Benefits Break Down | F1: Budget Period 1 | J1: Budget Period 2 | N1: Budget Period 3 | R1: Budget Period 4 | V1: Budget Period 5 | Z1: Total
F2: SALARY | G2: FRINGE | J2: SALARY | K2: FRINGE | N2: SALARY | O2: FRINGE | R2: SALARY | S2: FRINGE | V2: SALARY | W2: FRINGE | Z2: FRINGE
B3: Principal Investigator | F3: Total | G3: Sponsor | I3: UM | J3: Total | K3: Sponsor | M3: UM | N3: Total | O3: Sponsor | Q3: UM | R3: Total | S3: Sponsor | U3: UM | V3: Total | W3: Sponsor | Y3: UM | Z3: Sponsor | AA3: UM
D4: =Budget!C23 ->  | F4: =SUM(Budget!F24:'Budget'!F26) -> 0 | G4: =Budget!F24*Salaried_rate+Budget!F25*Salaried_rate+Budget!F26*Salaried_rate -> 0 | I4: =Budget!H24*Salaried_rate+Budget!H25*Salaried_rate+Budget!H26*Salaried_rate -> 0 | J4: =SUM(Budget!J24:'Budget'!J26) -> 0 | K4: =Budget!J24*Salaried_rate+Budget!J25*Salaried_rate+Budget!J26*Salaried_rate -> 0 | M4: =Budget!L24*Salaried_rate+Budget!L25*Salaried_rate+Budget!L26*Salaried_rate -> 0 | N4: =SUM(Budget!N24:'Budget'!N26) -> 0 | O4: =Budget!N24*Salaried_rate+Budget!N25*Salaried_rate+Budget!N26*Salaried_rate -> 0 | Q4: =Budget!P24*Salaried_rate+Budget!P25*Salaried_rate+Budget!P26*Salaried_rate -> 0 | R4: =SUM(Budget!R24:'Budget'!R26) -> 0 | S4: =Budget!R24*Salaried_rate+Budget!R25*Salaried_rate+Budget!R26*Salaried_rate -> 0 | U4: =Budget!T24*Salaried_rate+Budget!T25*Salaried_rate+Budget!T26*Salaried_rate -> 0 | V4: =SUM(Budget!V24:'Budget'!V26) -> 0 | W4: =Budget!V24*Salaried_rate+Budget!V25*Salaried_rate+Budget!V26*Salaried_rate -> 0 | Y4: =Budget!X24*Salaried_rate+Budget!X25*Salaried_rate+Budget!X26*Salaried_rate -> 0 | Z4: =SUM(G4,K4,O4,S4,W4) -> 0 | AA4: =SUM(I4,M4,Q4,U4,Y4) -> 0
B8: Investigator
D9: =Budget!C28 -> 0 | F9: =SUM(Budget!F29:'Budget'!F31) -> 0 | G9: =Budget!F29*Salaried_rate+Budget!F30*Salaried_rate+Budget!F31*Salaried_rate -> 0 | I9: =Budget!H29*Salaried_rate+Budget!H30*Salaried_rate+Budget!H31*Salaried_rate -> 0 | J9: =SUM(Budget!J29:'Budget'!J31) -> 0 | K9: =Budget!J29*Salaried_rate+Budget!J30*Salaried_rate+Budget!J31*Salaried_rate -> 0 | M9: =Budget!L29*Salaried_rate+Budget!L30*Salaried_rate+Budget!L31*Salaried_rate -> 0 | N9: =SUM(Budget!N29:'Budget'!N31) -> 0 | O9: =Budget!N29*Salaried_rate+Budget!N30*Salaried_rate+Budget!N31*Salaried_rate -> 0 | Q9: =Budget!P29*Salaried_rate+Budget!P30*Salaried_rate+Budget!P31*Salaried_rate -> 0 | R9: =SUM(Budget!R29:'Budget'!R31) -> 0 | S9: =Budget!R29*Salaried_rate+Budget!R30*Salaried_rate+Budget!R31*Salaried_rate -> 0 | U9: =Budget!T29*Salaried_rate+Budget!T30*Salaried_rate+Budget!T31*Salaried_rate -> 0 | V9: =SUM(Budget!V29:'Budget'!V31) -> 0 | W9: =Budget!V29*Salaried_rate+Budget!V30*Salaried_rate+Budget!V31*Salaried_rate -> 0 | Y9: =Budget!X29*Salaried_rate+Budget!X30*Salaried_rate+Budget!X31*Salaried_rate -> 0 | Z9: =SUM(G9,K9,O9,S9,W9) -> 0 | AA9: =SUM(I9,M9,Q9,U9,Y9) -> 0
B13: Other Monthy
D14: =Budget!C33 -> 0 | F14: =SUM(Budget!F34:'Budget'!F36) -> 0 | G14: =Budget!F34*Salaried_rate+Budget!F35*Salaried_rate+Budget!F36*Salaried_rate -> 0 | I14: =Budget!H34*Salaried_rate+Budget!H35*Salaried_rate+Budget!H36*Salaried_rate -> 0 | J14: =SUM(Budget!J34:'Budget'!J36) -> 0 | K14: =Budget!J34*Salaried_rate+Budget!J35*Salaried_rate+Budget!J36*Salaried_rate -> 0 | M14: =Budget!L34*Salaried_rate+Budget!L35*Salaried_rate+Budget!L36*Salaried_rate -> 0 | N14: =SUM(Budget!N34:'Budget'!N36) -> 0 | O14: =Budget!N34*Salaried_rate+Budget!N35*Salaried_rate+Budget!N36*Salaried_rate -> 0 | Q14: =Budget!P34*Salaried_rate+Budget!P35*Salaried_rate+Budget!P36*Salaried_rate -> 0 | R14: =SUM(Budget!R34:'Budget'!R36) -> 0 | S14: =Budget!R34*Salaried_rate+Budget!R35*Salaried_rate+Budget!R36*Salaried_rate -> 0 | U14: =Budget!T34*Salaried_rate+Budget!T35*Salaried_rate+Budget!T36*Salaried_rate -> 0 | V14: =SUM(Budget!V34:'Budget'!V36) -> 0 | W14: =Budget!V34*Salaried_rate+Budget!V35*Salaried_rate+Budget!V36*Salaried_rate -> 0 | Y14: =Budget!X34*Salaried_rate+Budget!X35*Salaried_rate+Budget!X36*Salaried_rate -> 0 | Z14: =SUM(G14,K14,O14,S14,W14) -> 0 | AA14: =SUM(I14,M14,Q14,U14,Y14) -> 0
Y21: TOTAL | Z21: =SUM(Z4:Z18) -> 0 | AA21: =SUM(AA4:AA18) -> 0

Sheet Salary Cap
A2: If an investigator's 12 month salary exceeds the NIH Salary Cap, please enter the Salary Cap numbers into the Budget Tab base salary for that investigator to calculate sponsored funds. Enter ACTUAL BASE into the correct Base column below to calculate required cost-share, and enter the resulting cost-share figures into the Budget Tab cost-share columns. You may manually adjust blue boxes if effort varies annually. See Effort Conversion Tab to correctly calculate % sponsored and cost-shared effort with Salary Cap for the Cayuse record.
D6: Year 1 | G6: Year 2 | J6: Year 3 | M6: Year 4 | P6: Year 5 | S6: TOTALS
A7: Investigator | B7: Base | C7: Salary Cap | D7: % Effort | E7: Sponsor | F7: Cost Share | G7: % Effort | H7: Sponsor | I7: Cost Share | J7: % Effort | K7: Sponsor | L7: Cost Share | M7: % Effort | N7: Sponsor | O7: Cost Share | P7: % Effort | Q7: Sponsor | R7: Cost Share | S7: Sponsor | T7: Cost Share
A8: Sample
A9: Academic Year | B9: 157500 | C9: ='Validation Data'!D2*0.75 -> 152775 | D9: 0.15 | E9: =$C9*D9 -> 22916.25 | F9: =($B9-$C9)*D9 -> 708.75 | G9: =D9 -> 0.15 | H9: =$C9*G9 -> 22916.25 | I9: =($B9-$C9)*G9 -> 708.75 | J9: =D9 -> 0.15 | K9: =$C9*J9 -> 22916.25 | L9: =($B9-$C9)*J9 -> 708.75 | M9: =D9 -> 0.15 | N9: =$C9*M9 -> 22916.25 | O9: =($B9-$C9)*M9 -> 708.75 | P9: =D9 -> 0.15 | Q9: =$C9*P9 -> 22916.25 | R9: =($B9-$C9)*P9 -> 708.75 | S9: =E9+H9+K9+N9+Q9 -> 114581.25 | T9: 3543.75
A10: Summer | B10: =B9/3 -> 52500 | C10: ='Validation Data'!D2*0.25 -> 50925 | D10: 0.15 | E10: =$C10*D10 -> 7638.75 | F10: =($B10-$C10)*D10 -> 236.25 | G10: =D10 -> 0.15 | H10: =$C10*G10 -> 7638.75 | I10: =($B10-$C10)*G10 -> 236.25 | J10: =D10 -> 0.15 | K10: =$C10*J10 -> 7638.75 | L10: =($B10-$C10)*J10 -> 236.25 | M10: =D10 -> 0.15 | N10: =$C10*M10 -> 7638.75 | O10: =($B10-$C10)*M10 -> 236.25 | P10: =D10 -> 0.15 | Q10: =$C10*P10 -> 7638.75 | R10: =($B10-$C10)*P10 -> 236.25 | S10: 38193.75 | T10: 1181.25
A11: Totals (12 mo) | B11: =B9+B10 -> 210000 | C11: =C9+C10 -> 203700 | E11: =E9+E10 -> 30555 | F11: =F9+F10 -> 945 | H11: =H9+H10 -> 30555 | I11: =I9+I10 -> 945 | K11: =K9+K10 -> 30555 | L11: =L9+L10 -> 945 | N11: =N9+N10 -> 30555 | O11: =O9+O10 -> 945 | Q11: =Q9+Q10 -> 30555 | R11: =R9+R10 -> 945 | S11: =E11+H11+K11+N11+Q11 -> 152775 | T11: =F11+I11+L11+O11+R11 -> 4725
A12: 12-month personnel Salary | B12: 210000 | C12: ='Validation Data'!D2 -> 203700 | D12: 0.15 | E12: =$C12*D12 -> 30555 | F12: =($B12-$C12)*D12 -> 945 | G12: =D12 -> 0.15 | H12: =$C12*G12 -> 30555 | I12: =($B12-$C12)*G12 -> 945 | J12: =D12 -> 0.15 | K12: =$C12*J12 -> 30555 | L12: =($B12-$C12)*J12 -> 945 | M12: =D12 -> 0.15 | N12: =$C12*M12 -> 30555 | O12: =($B12-$C12)*M12 -> 945 | P12: =D12 -> 0.15 | Q12: =$C12*P12 -> 30555 | R12: =($B12-$C12)*P12 -> 945 | S12: 152775 | T12: 4725
A14: Academic Year | B14: 0 | C14: ='Validation Data'!D2*0.75 -> 152775 | D14: 0 | E14: =$C14*D14 -> 0 | F14: =($B14-$C14)*D14 -> 0 | G14: =D14 -> 0 | H14: =$C14*G14 -> 0 | I14: =($B14-$C14)*G14 -> 0 | J14: =D14 -> 0 | K14: =$C14*J14 -> 0 | L14: =($B14-$C14)*J14 -> 0 | M14: =D14 -> 0 | N14: =$C14*M14 -> 0 | O14: =($B14-$C14)*M14 -> 0 | P14: =D14 -> 0 | Q14: =$C14*P14 -> 0 | R14: =($B14-$C14)*P14 -> 0 | S14: =E14+H14+K14+N14+Q14 -> 0 | T14: =F14+I14+L14+O14+R14 -> 0
A15: Summer | B15: =B14/3 -> 0 | C15: ='Validation Data'!D2*0.25 -> 50925 | D15: 0 | E15: =$C15*D15 -> 0 | F15: =($B15-$C15)*D15 -> 0 | G15: =D15 -> 0 | H15: =$C15*G15 -> 0 | I15: =($B15-$C15)*G15 -> 0 | J15: =D15 -> 0 | K15: =$C15*J15 -> 0 | L15: =($B15-$C15)*J15 -> 0 | M15: =D15 -> 0 | N15: =$C15*M15 -> 0 | O15: =($B15-$C15)*M15 -> 0 | P15: =D15 -> 0 | Q15: =$C15*P15 -> 0 | R15: =($B15-$C15)*P15 -> 0 | S15: 0 | T15: 0
A16: Totals (12 mo) | B16: =B14+B15 -> 0 | C16: =C14+C15 -> 203700 | E16: =E14+E15 -> 0 | F16: =F14+F15 -> 0 | H16: =H14+H15 -> 0 | I16: =I14+I15 -> 0 | K16: =K14+K15 -> 0 | L16: =L14+L15 -> 0 | N16: =N14+N15 -> 0 | O16: =O14+O15 -> 0 | Q16: =Q14+Q15 -> 0 | R16: =R14+R15 -> 0 | S16: 0 | T16: 0
A17: 12-month personnel Salary | B17: 0 | C17: ='Validation Data'!D2 -> 203700 | D17: 0 | E17: =$C17*D17 -> 0 | F17: =($B17-$C17)*D17 -> 0 | G17: =D17 -> 0 | H17: =$C17*G17 -> 0 | I17: =($B17-$C17)*G17 -> 0 | J17: =D17 -> 0 | K17: =$C17*J17 -> 0 | L17: =($B17-$C17)*J17 -> 0 | M17: =D17 -> 0 | N17: =$C17*M17 -> 0 | O17: =($B17-$C17)*M17 -> 0 | P17: =D17 -> 0 | Q17: =$C17*P17 -> 0 | R17: =($B17-$C17)*P17 -> 0 | S17: 0 | T17: 0
A19: Academic Year | B19: 0 | C19: ='Validation Data'!D2*0.75 -> 152775 | D19: 0 | E19: =$C19*D19 -> 0 | F19: =($B19-$C19)*D19 -> 0 | G19: =D19 -> 0 | H19: =$C19*G19 -> 0 | I19: =($B19-$C19)*G19 -> 0 | J19: =D19 -> 0 | K19: =$C19*J19 -> 0 | L19: =($B19-$C19)*J19 -> 0 | M19: =D19 -> 0 | N19: =$C19*M19 -> 0 | O19: =($B19-$C19)*M19 -> 0 | P19: =D19 -> 0 | Q19: =$C19*P19 -> 0 | R19: =($B19-$C19)*P19 -> 0 | S19: =E19+H19+K19+N19+Q19 -> 0 | T19: =F19+I19+L19+O19+R19 -> 0
A20: Summer | B20: =B19/3 -> 0 | C20: ='Validation Data'!D2*0.25 -> 50925 | D20: 0 | E20: =$C20*D20 -> 0 | F20: =($B20-$C20)*D20 -> 0 | G20: =D20 -> 0 | H20: =$C20*G20 -> 0 | I20: =($B20-$C20)*G20 -> 0 | J20: =D20 -> 0 | K20: =$C20*J20 -> 0 | L20: =($B20-$C20)*J20 -> 0 | M20: =D20 -> 0 | N20: =$C20*M20 -> 0 | O20: =($B20-$C20)*M20 -> 0 | P20: =D20 -> 0 | Q20: =$C20*P20 -> 0 | R20: =($B20-$C20)*P20 -> 0 | S20: 0 | T20: 0
A21: Totals (12 mo) | B21: =B19+B20 -> 0 | C21: =C19+C20 -> 203700 | E21: =E19+E20 -> 0 | F21: =F19+F20 -> 0 | H21: =H19+H20 -> 0 | I21: =I19+I20 -> 0 | K21: =K19+K20 -> 0 | L21: =L19+L20 -> 0 | N21: =N19+N20 -> 0 | O21: =O19+O20 -> 0 | Q21: =Q19+Q20 -> 0 | R21: =R19+R20 -> 0 | S21: 0 | T21: 0
A22: 12-month personnel Salary | B22: 0 | C22: ='Validation Data'!D2 -> 203700 | D22: 0 | E22: =$C22*D22 -> 0 | F22: =($B22-$C22)*D22 -> 0 | G22: =D22 -> 0 | H22: =$C22*G22 -> 0 | I22: =($B22-$C22)*G22 -> 0 | J22: =D22 -> 0 | K22: =$C22*J22 -> 0 | L22: =($B22-$C22)*J22 -> 0 | M22: =D22 -> 0 | N22: =$C22*M22 -> 0 | O22: =($B22-$C22)*M22 -> 0 | P22: =D22 -> 0 | Q22: =$C22*P22 -> 0 | R22: =($B22-$C22)*P22 -> 0 | S22: 0 | T22: 0
A24: Academic Year | B24: 0 | C24: ='Validation Data'!D2*0.75 -> 152775 | D24: 0 | E24: =$C24*D24 -> 0 | F24: =($B24-$C24)*D24 -> 0 | G24: =D24 -> 0 | H24: =$C24*G24 -> 0 | I24: =($B24-$C24)*G24 -> 0 | J24: =D24 -> 0 | K24: =$C24*J24 -> 0 | L24: =($B24-$C24)*J24 -> 0 | M24: =D24 -> 0 | N24: =$C24*M24 -> 0 | O24: =($B24-$C24)*M24 -> 0 | P24: =D24 -> 0 | Q24: =$C24*P24 -> 0 | R24: =($B24-$C24)*P24 -> 0 | S24: =E24+H24+K24+N24+Q24 -> 0 | T24: =F24+I24+L24+O24+R24 -> 0
A25: Summer | B25: =B24/3 -> 0 | C25: ='Validation Data'!D2*0.25 -> 50925 | D25: 0 | E25: =$C25*D25 -> 0 | F25: =($B25-$C25)*D25 -> 0 | G25: =D25 -> 0 | H25: =$C25*G25 -> 0 | I25: =($B25-$C25)*G25 -> 0 | J25: =D25 -> 0 | K25: =$C25*J25 -> 0 | L25: =($B25-$C25)*J25 -> 0 | M25: =D25 -> 0 | N25: =$C25*M25 -> 0 | O25: =($B25-$C25)*M25 -> 0 | P25: =D25 -> 0 | Q25: =$C25*P25 -> 0 | R25: =($B25-$C25)*P25 -> 0 | S25: 0 | T25: 0
A26: Totals (12 mo) | B26: =B24+B25 -> 0 | C26: =C24+C25 -> 203700 | E26: =E24+E25 -> 0 | F26: =F24+F25 -> 0 | H26: =H24+H25 -> 0 | I26: =I24+I25 -> 0 | K26: =K24+K25 -> 0 | L26: =L24+L25 -> 0 | N26: =N24+N25 -> 0 | O26: =O24+O25 -> 0 | Q26: =Q24+Q25 -> 0 | R26: =R24+R25 -> 0 | S26: 0 | T26: 0
A27: 12-month personnel Salary | B27: 0 | C27: ='Validation Data'!D2 -> 203700 | D27: 0 | E27: =$C27*D27 -> 0 | F27: =($B27-$C27)*D27 -> 0 | G27: =D27 -> 0 | H27: =$C27*G27 -> 0 | I27: =($B27-$C27)*G27 -> 0 | J27: =D27 -> 0 | K27: =$C27*J27 -> 0 | L27: =($B27-$C27)*J27 -> 0 | M27: =D27 -> 0 | N27: =$C27*M27 -> 0 | O27: =($B27-$C27)*M27 -> 0 | P27: =D27 -> 0 | Q27: =$C27*P27 -> 0 | R27: =($B27-$C27)*P27 -> 0 | S27: 0 | T27: 0
A29: Academic Year | B29: 0 | C29: ='Validation Data'!D2*0.75 -> 152775 | D29: 0 | E29: =$C29*D29 -> 0 | F29: =($B29-$C29)*D29 -> 0 | G29: =D29 -> 0 | H29: =$C29*G29 -> 0 | I29: =($B29-$C29)*G29 -> 0 | J29: =D29 -> 0 | K29: =$C29*J29 -> 0 | L29: =($B29-$C29)*J29 -> 0 | M29: =D29 -> 0 | N29: =$C29*M29 -> 0 | O29: =($B29-$C29)*M29 -> 0 | P29: =D29 -> 0 | Q29: =$C29*P29 -> 0 | R29: =($B29-$C29)*P29 -> 0 | S29: =E29+H29+K29+N29+Q29 -> 0 | T29: =F29+I29+L29+O29+R29 -> 0
A30: Summer | B30: =B29/3 -> 0 | C30: ='Validation Data'!D2*0.25 -> 50925 | D30: 0 | E30: =$C30*D30 -> 0 | F30: =($B30-$C30)*D30 -> 0 | G30: =D30 -> 0 | H30: =$C30*G30 -> 0 | I30: =($B30-$C30)*G30 -> 0 | J30: =D30 -> 0 | K30: =$C30*J30 -> 0 | L30: =($B30-$C30)*J30 -> 0 | M30: =D30 -> 0 | N30: =$C30*M30 -> 0 | O30: =($B30-$C30)*M30 -> 0 | P30: =D30 -> 0 | Q30: =$C30*P30 -> 0 | R30: =($B30-$C30)*P30 -> 0 | S30: 0 | T30: 0
A31: Totals (12 mo) | B31: =B29+B30 -> 0 | C31: =C29+C30 -> 203700 | E31: =E29+E30 -> 0 | F31: =F29+F30 -> 0 | H31: =H29+H30 -> 0 | I31: =I29+I30 -> 0 | K31: =K29+K30 -> 0 | L31: =L29+L30 -> 0 | N31: =N29+N30 -> 0 | O31: =O29+O30 -> 0 | Q31: =Q29+Q30 -> 0 | R31: =R29+R30 -> 0 | S31: 0 | T31: 0
A32: 12-month personnel Salary | B32: 0 | C32: ='Validation Data'!D2 -> 203700 | D32: 0 | E32: =$C32*D32 -> 0 | F32: =($B32-$C32)*D32 -> 0 | G32: =D32 -> 0 | H32: =$C32*G32 -> 0 | I32: =($B32-$C32)*G32 -> 0 | J32: =D32 -> 0 | K32: =$C32*J32 -> 0 | L32: =($B32-$C32)*J32 -> 0 | M32: =D32 -> 0 | N32: =$C32*M32 -> 0 | O32: =($B32-$C32)*M32 -> 0 | P32: =D32 -> 0 | Q32: =$C32*P32 -> 0 | R32: =($B32-$C32)*P32 -> 0 | S32: 0 | T32: 0
A34: Academic Year | B34: 0 | C34: ='Validation Data'!D2*0.75 -> 152775 | D34: 0 | E34: =$C34*D34 -> 0 | F34: =($B34-$C34)*D34 -> 0 | G34: =D34 -> 0 | H34: =$C34*G34 -> 0 | I34: =($B34-$C34)*G34 -> 0 | J34: =D34 -> 0 | K34: =$C34*J34 -> 0 | L34: =($B34-$C34)*J34 -> 0 | M34: =D34 -> 0 | N34: =$C34*M34 -> 0 | O34: =($B34-$C34)*M34 -> 0 | P34: =D34 -> 0 | Q34: =$C34*P34 -> 0 | R34: =($B34-$C34)*P34 -> 0 | S34: =E34+H34+K34+N34+Q34 -> 0 | T34: =F34+I34+L34+O34+R34 -> 0
A35: Summer | B35: =B34/3 -> 0 | C35: ='Validation Data'!D2*0.25 -> 50925 | D35: 0 | E35: =$C35*D35 -> 0 | F35: =($B35-$C35)*D35 -> 0 | G35: =D35 -> 0 | H35: =$C35*G35 -> 0 | I35: =($B35-$C35)*G35 -> 0 | J35: =D35 -> 0 | K35: =$C35*J35 -> 0 | L35: =($B35-$C35)*J35 -> 0 | M35: =D35 -> 0 | N35: =$C35*M35 -> 0 | O35: =($B35-$C35)*M35 -> 0 | P35: =D35 -> 0 | Q35: =$C35*P35 -> 0 | R35: =($B35-$C35)*P35 -> 0 | S35: 0 | T35: 0
A36: Totals (12 mo) | B36: =B34+B35 -> 0 | C36: =C34+C35 -> 203700 | E36: =E34+E35 -> 0 | F36: =F34+F35 -> 0 | H36: =H34+H35 -> 0 | I36: =I34+I35 -> 0 | K36: =K34+K35 -> 0 | L36: =L34+L35 -> 0 | N36: =N34+N35 -> 0 | O36: =O34+O35 -> 0 | Q36: =Q34+Q35 -> 0 | R36: =R34+R35 -> 0 | S36: 0 | T36: 0
A37: 12-month personnel Salary | B37: 0 | C37: ='Validation Data'!D2 -> 203700 | D37: 0 | E37: =$C37*D37 -> 0 | F37: =($B37-$C37)*D37 -> 0 | G37: =D37 -> 0 | H37: =$C37*G37 -> 0 | I37: =($B37-$C37)*G37 -> 0 | J37: =D37 -> 0 | K37: =$C37*J37 -> 0 | L37: =($B37-$C37)*J37 -> 0 | M37: =D37 -> 0 | N37: =$C37*M37 -> 0 | O37: =($B37-$C37)*M37 -> 0 | P37: =D37 -> 0 | Q37: =$C37*P37 -> 0 | R37: =($B37-$C37)*P37 -> 0 | S37: 0 | T37: 0

Sheet Special Course Fees
A2: Special Course Fees Per Year
E3: # students | F3: Special Course Credit hours/semester | G3: Course Fees
A4: Fine Art Courses | G4: =E4*F4*'Validation Data'!E21*2 -> 0
A5: Broadcast and Film/Video Courses | G5: =E5*F5*'Validation Data'!E22*2 -> 0
A6: Communication Sciences & Disorders Courses | G6: =E6*F6*'Validation Data'!E23*2 -> 0
A7: Teacher Education Courses | G7: =E7*F7*'Validation Data'!E24*2 -> 0
A8: Business Courses | G8: =E8*F8*'Validation Data'!E25*2 -> 0
A9: Engineering Courses | G9: =E9*F9*'Validation Data'!E26*2 -> 0
A10: Nursing Courses | G10: =E10*F10*'Validation Data'!E27*2 -> 0
A11: Performing Arts Courses (prefixes THEA & DANC) | G11: =E11*F11*'Validation Data'!E28*2 -> 0
F13: Total Fees | G13: =SUM(G4:G11) -> 0
A14: Information on special course fees may be found here:
A15: https://www.memphis.edu/usbs/fees/otherfees.php#special

Sheet 3rd Party Cost Share
A2: Third Party Cost Share
A3: This tab should only be used if an external partner organization is committing cost share to the sponsored project. Any amounts identified will need to be substantiated with a letter of commitment.
A5: ORGANIZATION NAME | B5: Period 1 | C5: Period 2 | D5: Period 3 | E5: Period 4 | F5: Period 5 | G5: TOTALS
G6: =SUM(B6:F6) -> 0
G7: 0
G8: 0
G9: 0
G10: 0
G11: 0
G12: 0
G13: 0
G14: 0
G15: 0
A16: TOTALS | B16: =SUM(B6:B15) -> 0 | C16: =SUM(C6:C15) -> 0 | D16: =SUM(D6:D15) -> 0 | E16: =SUM(E6:E15) -> 0 | F16: =SUM(F6:F15) -> 0 | G16: 0

Sheet % Effort Conversion
B2: Effort/Calendar Month Calculator for Cayuse Record
B5: To convert Summer + Academic Year % Effort for 9-month faculty to Total % Effort and Person Months, enter budgeted % effort yellow boxes and the blue box results in Cayuse Investigator/Research Team section. | I5: For 12-month personnel, enter budgeted % effort into yellow box and the blue box results in Cayuse Investigator/ Research Team section.
B10: 3 months | D10: 9 months | F10: Combined | J10: 12 month
B11: Summer Term | D11: Academic Year | F11: 9 months and 3 months | J11: Calendar Year
F12: Total
B13: % effort | C13: Person Months | D13: % effort | E13: Person Months | F13: % effort | G13: Person Months | J13: % effort | K13: Person Months
B14: 0 | C14: =B14*0.03 -> 0 | D14: 0 | E14: =D14*0.09 -> 0 | F14: =G14/12*100 -> 0 | G14: =C14+E14 -> 0 | J14: 0 | K14: =J14*0.12 -> 0
B18: Salary Cap Sponsored Effort/Calendar Month Calculator for Cayuse Record - 9 month faculty
E21: Budgeted % effort | F21: Sponsored Effort | G21: Person Months | H21: Cost Shared Effort | I21: Person Months
B23: Salary Cap AY | D23: ='Validation Data'!D2*0.75 -> 152775 | E23: 0.15 | F23: =(D23*E23)/(D25) -> 0.1455 | G23: =9*F23 -> 1.3095
B24: Salary Cap SU | D24: ='Validation Data'!D2*0.25 -> 50925 | E24: 0.15 | F24: =(D24*E24)/(D26) -> 0.1455 | G24: =F24*3 -> 0.4365
B25: Investigator Base AY | D25: 157500 | H25: =((D25-D23)*E23)/D25 -> 0.0045 | I25: =H25*9 -> 0.0405
B26: Investigator Base SU | D26: =D25/3 -> 52500 | H26: =((D26-D24)*E24)/D26 -> 0.0045 | I26: =H26*3 -> 0.0135
B27: TOTAL | F27: =G27/12 -> 0.1455 | G27: =G23+G24 -> 1.746 | H27: =I27/12 -> 0.0045 | I27: =I25+I26 -> 0.054
B29: Salary Cap Sponsored Effort/Calendar Month Calculator for Cayuse Record - 12 month personnel
E32: Budgeted % effort | F32: Sponsored Effort | G32: Person Months | H32: Cost Shared Effort | I32: Person Months
B34: Salary Cap CY | D34: ='Validation Data'!D2 -> 203700 | E34: 0.15 | F34: =(D34*E34)/D35 -> 0.1455 | G34: =12*F34 -> 1.746
B35: Investigator Base CY | D35: 210000 | H35: =((D35-D34)*E34)/D35 -> 0.0045 | I35: =H35*12 -> 0.054
B36: TOTAL | F36: =G34/12 -> 0.1455 | G36: =G34 -> 1.746 | H36: =I36/12 -> 0.0045 | I36: =I35 -> 0.054

Sheet Cayuse Budget
A1: Summary Budget:
A3: Lead PI: | B3: =Budget!B3 -> 0 | C3: Sponsor: | D3: =Budget!B5 -> 0
A5: # of Budget Periods: | B5: =Budget!D8 -> 0
B6: Project Dates: | C6: Current Period | D6: Entire Project
B7: Start: | C7: =Budget!E17 -> 00:00:00 | D7: =Budget!B7 -> 00:00:00
B8: End: | C8: =Budget!E18 -> 00:00:00 | D8: =Budget!D7 -> 00:00:00
A10: Cost Sharing | B10: Itemize and Enter in Cost Share with funding source | C10: =Budget!H105 -> 0 | D10: =Budget!Z105 -> 0
A12: F&A Rates | C12: Current Period | D12: Entire Project
B13: F&A Rate (1): | C13: =Budget!D104 -> 0 | D13: =Budget!D104 -> 0
A15: Budget Categories | C15: Current Period | D15: Entire Project
B16: SPONSOR DIRECT COSTS: | C16: =Budget!F102 -> 0 | D16: =Budget!Y102 -> 0
B17: BASE for F&A Rate (1): | C17: =Budget!F103 -> 0 | D17: =Budget!Y103 -> 0
B18: INDIRECT COSTS (F&A): | C18: =Budget!F104 -> 0 | D18: =Budget!Y104 -> 0
B20: TOTAL SPONSOR PROPOSED COSTS: | C20: =Budget!F105 -> 0 | D20: =Budget!Y105 -> 0
B21: Internal Cost Sharing: | C21: =Budget!H105 -> 0 | D21: =Budget!Z105 -> 0
B22: TOTAL PROJECT COSTS: | C22: =Budget!F107 -> 0 | D22: =Budget!Y107 -> 0

Sheet Validation Data
A1: Location: | B1: IDC Type: | C1: IDC Rate: | D1: Salary Cap | E1: Fringe Rates: | F1: Travel: | G1: Roles: | H1: Supplies: | I1: Other: | J1: Expiration Date | K1: Yes/No | L1: Participant Support: | M1: Materials and Supplies | N1: Cost Share | O1: Class Hours
A2: Select One | B2: Select One | C2: 0.435 | D2: 203700 | E2: 0.3586 | F2: -- | G2: Investigator | H2: Laptops/computers/etc | I2: Printing | J2: 2022-07-01 | K2: Yes | L2: Tuition | M2: Research consumables | N2: No | O2: 9hrs/sem
A3: On-Campus | B3: MTDC | C3: 0.55 | E3: 0.5283 | F3: Domestic | G3: Principal Investigator | H3: Consumables | I3: Animal per diems | K3: No | L3: Stipends | M3: Equipment less than $5,000 | N3: Yes | O3: 10hrs/sem
A4: Off-Campus | B4: TDC | C4: 0.35 | E4: 0.0744 | F4: International | G4: Salaried Employee | H4: Laboratory supplies | I4: Human subject incentive | L4: Travel allowance | M4: Laptop computer
B5: -- | C5: 0.26 | E5: 0.144 | H5: Non-capitalized equipment | I5: IMC fees | L5: Subsistence | M5: Write In
C6: 0.15 | E6: 0.012 | H6: Write in | I6: Animal purchase and shipping | L6: Write in
C7: 0.08 | I7: Write in
A17: Reference: | B17: https://www.memphis.edu/usbs/fees/fees_feecharts_fall2021_spring2022.php | G17: Program Service Fee per hour
A18: Regular Courses | E18: 521 | G18: 85
A20: Special Course Fees
A21: Fine Art Courses | E21: 30
A22: Broadcast and Film/Video Courses | E22: 30
A23: Communication Sciences & Disorders Courses | E23: 25
A24: Teacher Education Courses | E24: 25
A25: Business Courses | E25: 35
A26: Engineering Courses | E26: 45
A27: Nursing Courses | E27: 30
A28: Performing Arts Courses (prefixes THEA & DANC) | E28: 20
